bitfinex-derivatives/quotes_BTCF0:USTF0_20241203
["timestamp","ask_amount","ask_price","bid_price","bid_amount"]
[1733243052766,0.00112,95838.0,95837.0,1.986756]
[1733243053070,0.00112,95838.0,95837.0,2.129956]
[1733243053255,0.00112,95838.0,95837.0,1.552156]
[1733243053456,0.00112,95838.0,95837.0,0.053156]
[1733243053655,0.16944,95838.0,95837.0,0.053156]
[1733243053969,0.2633651,95838.0,95837.0,0.053156]
[1733243054160,0.2633651,95838.0,95837.0,0.054156]
[1733243054361,0.41918268,95838.0,95837.0,0.056156]
[1733243054559,0.51310778,95838.0,95837.0,0.056156]
[1733243054865,0.3697495,95838.0,95837.0,0.054156]
[1733243055064,0.67169312,95838.0,95831.0,0.00112]
[1733243055368,0.67169312,95838.0,95820.0,0.12545213]
[1733243055369,0.41296,95832.0,95820.0,0.12545213]
[1733243055672,0.24953017,95828.0,95821.0,1.5]
[1733243055869,0.2632451,95827.0,95821.0,1.5]
[1733243056169,0.0939251,95826.0,95820.0,0.12545213]
[1733243056358,0.0939251,95825.0,95820.0,0.12545213]
[1733243056557,0.0939251,95824.0,95820.0,0.12545213]
[1733243056757,0.16932,95827.0,95826.0,0.052163]
[1733243056964,0.26259326,95827.0,95826.0,0.052163]
[1733243057164,0.26259326,95827.0,95826.0,0.052203]
[1733243057972,0.26359326,95827.0,95826.0,0.052203]
[1733243058369,0.26259326,95827.0,95826.0,0.052203]
[1733243058666,0.26359326,95827.0,95826.0,0.052203]
[1733243059174,0.17032,95827.0,95826.0,0.052203]
[1733243059362,0.001,95827.0,95826.0,0.413003]
[1733243059680,0.004,95827.0,95826.0,0.413003]
[1733243059974,0.004,95827.0,95826.0,1.913003]
[1733243059975,0.003,95827.0,95826.0,1.913003]
[1733243060267,0.001,95827.0,95826.0,1.913003]
[1733243060461,0.004,95827.0,95826.0,1.913003]
[1733243061168,0.001,95827.0,95826.0,1.913003]
[1733243061358,0.004,95827.0,95826.0,1.913003]
[1733243062065,0.004,95827.0,95826.0,0.413003]
[1733243062265,0.004,95827.0,95826.0,0.052203]
[1733243062567,0.50958816,95827.0,95826.0,4e-05]
[1733243062966,0.75911833,95827.0,95826.0,4e-05]
[1733243063478,0.61568343,95827.0,95826.0,4e-05]
[1733243064372,0.50958816,95827.0,95826.0,4e-05]
[1733243064567,0.61512416,95827.0,95826.0,4e-05]
[1733243064971,0.926943,95827.0,95826.0,4e-05]
[1733243065173,0.820407,95827.0,95826.0,4e-05]
[1733243065366,0.50958816,95827.0,95826.0,4e-05]
[1733243066071,0.50858816,95827.0,95826.0,4e-05]
[1733243066877,0.50658816,95827.0,95826.0,4e-05]
[1733243067075,0.3668,95827.0,95826.0,0.053203]
[1733243067269,0.015,95827.0,95826.0,0.054203]
[1733243067467,0.015,95827.0,95826.0,1.554203]
[1733243068882,0.009,95827.0,95826.0,1.553203]
[1733243069073,0.015,95827.0,95826.0,1.625903]
[1733243069673,0.015,95827.0,95826.0,1.624903]
[1733243069974,0.015,95827.0,95826.0,1.625903]
[1733243070867,0.24940801,95842.0,95837.0,0.052157]
[1733243071064,0.03030552,95842.0,95837.0,0.052157]
[1733243071367,0.03030552,95842.0,95837.0,0.052197]
[1733243072271,0.00810466,95838.0,95837.0,0.053197]
[1733243072471,0.01710466,95838.0,95837.0,0.054197]
[1733243073273,0.01710466,95838.0,95837.0,0.201197]
[1733243073880,0.01710466,95838.0,95837.0,1.701197]
[1733243075773,0.00910466,95838.0,95837.0,1.700197]
[1733243075973,0.01310466,95838.0,95837.0,1.700197]
[1733243076781,0.24940801,95849.0,95848.0,0.052151]
[1733243076979,0.16892,95857.0,95848.0,0.052151]
[1733243076980,0.41832801,95857.0,95856.0,0.052146]
[1733243077179,0.26270363,95857.0,95856.0,0.052146]
[1733243077369,0.26270363,95857.0,95856.0,0.052186]
[1733243077682,0.09386531,95857.0,95856.0,0.052186]
[1733243078084,0.0942979,95857.0,95856.0,0.052186]
[1733243078284,0.0942982,95857.0,95856.0,0.052186]
[1733243078582,0.00908168,95857.0,95856.0,0.053186]
[1733243079370,0.01208168,95857.0,95856.0,0.053186]
[1733243079882,0.01208168,95857.0,95856.0,0.413986]
[1733243080070,0.16892,95878.0,95874.0,0.052137]
[1733243080278,0.84559499,95875.0,95874.0,0.052137]
[1733243080587,0.84559499,95875.0,95874.0,0.052177]
[1733243080588,0.45620958,95875.0,95874.0,0.052177]
[1733243080788,0.09540958,95875.0,95874.0,0.052177]
[1733243080977,0.24948573,95875.0,95874.0,0.052177]
[1733243081389,0.09563527,95875.0,95874.0,0.052177]
[1733243081581,9.254e-05,95875.0,95874.0,0.053177]
[1733243081977,9.254e-05,95875.0,95874.0,0.08254722]
[1733243082285,0.00809254,95875.0,95874.0,0.08354722]
[1733243082585,0.00809254,95875.0,95874.0,1.554177]
[1733243083581,0.00809254,95875.0,95874.0,0.054177]
[1733243083784,0.00809254,95875.0,95874.0,0.00204]
[1733243084185,0.10321848,95875.0,95874.0,0.00204]
[1733243085080,0.25716039,95875.0,95874.0,0.00204]
[1733243085278,0.10321848,95875.0,95874.0,0.00204]
[1733243085585,0.00809254,95875.0,95874.0,0.054176]
[1733243086278,0.17697254,95875.0,95874.0,0.054176]
[1733243088392,0.22910854,95875.0,95874.0,0.00204]
[1733243089090,0.32413658,95875.0,95874.0,0.00204]
[1733243089294,0.57320443,95875.0,95874.0,0.054176]
[1733243089586,0.32413658,95875.0,95874.0,0.054176]
[1733243089986,0.57265966,95875.0,95874.0,0.054176]
[1733243090492,0.57261696,95875.0,95874.0,0.054176]
[1733243090887,0.22910854,95875.0,95874.0,0.054176]
[1733243094808,0.17697254,95875.0,95874.0,0.054176]
[1733243096202,0.10371144,95875.0,95874.0,0.054176]
[1733243096606,0.10371144,95875.0,95874.0,1.554176]
[1733243096806,0.10371144,95875.0,95874.0,0.054176]
[1733243097208,0.10371144,95875.0,95874.0,1.554176]
[1733243098007,0.00809254,95875.0,95874.0,1.554176]
[1733243101106,0.10278348,95875.0,95874.0,0.054176]
[1733243101608,0.10278348,95875.0,95874.0,0.07504884]
[1733243101609,0.21063286,95875.0,95874.0,0.07504884]
[1733243101808,0.10278348,95875.0,95874.0,0.07504884]
[1733243102219,0.00809254,95875.0,95874.0,0.07504884]
[1733243102512,0.10253303,95875.0,95874.0,0.07504884]
[1733243102711,0.21011517,95875.0,95874.0,0.07504884]
[1733243103410,0.21011517,95875.0,95874.0,0.054176]
[1733243103807,0.10253303,95875.0,95874.0,0.054176]
[1733243104410,0.15466803,95875.0,95874.0,0.00204]
[1733243104808,0.06022754,95875.0,95874.0,0.054176]
[1733243105008,0.26216967,95875.0,95874.0,0.054176]
[1733243105809,0.21003467,95875.0,95874.0,0.054176]
[1733243106607,0.28893281,95875.0,95874.0,0.054176]
[1733243106808,0.10253303,95875.0,95874.0,0.054176]
[1733243107009,0.27093303,95875.0,95874.0,0.054176]
[1733243107915,0.27093303,95875.0,95874.0,1.554176]
[1733243108812,0.10253303,95875.0,95874.0,1.554176]
[1733243109015,0.27093303,95875.0,95874.0,1.554176]
[1733243109410,0.52070791,95875.0,95874.0,1.554176]
[1733243109611,0.52070791,95875.0,95874.0,1.914976]
[1733243109612,0.209266,95875.0,95874.0,1.914976]
[1733243109818,0.28102032,95893.0,95892.0,0.052126]
[1733243110010,0.31204474,95894.0,95892.0,0.412926]
[1733243110211,0.1,95900.0,95892.0,0.412926]
[1733243110212,0.28105293,95898.0,95897.0,0.052124]
[1733243110511,0.1,95900.0,95897.0,0.052124]
[1733243110512,0.1,95900.0,95899.0,0.052123]
[1733243110712,0.10010924,95900.0,95899.0,0.052123]
[1733243110905,0.4384,95920.0,95916.0,0.052113]
[1733243110906,0.31204474,95917.0,95916.0,0.052113]
[1733243111111,0.1684,95917.0,95916.0,0.052113]
[1733243111308,0.1684,95917.0,95900.0,1.50104]
[1733243111513,0.1684,95917.0,95880.0,0.10457529]
[1733243111514,0.052124,95897.0,95892.0,0.002]
[1733243111709,0.3608,95893.0,95892.0,0.002]
[1733243111919,0.052127,95892.0,95877.0,9.658e-05]
[1733243112122,0.3608,95880.0,95877.0,9.658e-05]
[1733243112423,0.00016,95878.0,95877.0,0.05223058]
[1733243114218,0.052294,95878.0,95877.0,9.658e-05]
[1733243114423,0.052294,95878.0,95877.0,0.05223058]
[1733243114622,0.124894,95878.0,95877.0,0.05223058]
[1733243114820,0.15442229,95878.0,95877.0,0.05223058]
[1733243115123,0.15442229,95878.0,95877.0,9.658e-05]
[1733243115311,0.05214,95867.0,95866.0,0.05214]
[1733243115517,0.58134,95867.0,95866.0,0.05214]
[1733243115816,0.52936,95867.0,95866.0,0.05214]
[1733243117222,0.052149,95851.0,95850.0,0.00156475]
[1733243117528,0.581509,95851.0,95850.0,0.00156475]
[1733243117724,0.942309,95851.0,95850.0,0.00156475]
[1733243117916,1.04662072,95851.0,95850.0,0.00156475]
[1733243118112,1.1427931,95851.0,95850.0,0.00156475]
[1733243118312,1.1427931,95851.0,95820.0,0.0105]
[1733243118313,9.635e-05,95850.0,95820.0,0.0105]
[1733243118519,9.635e-05,95850.0,95824.0,0.052163]
[1733243118520,0.412962,95827.0,95824.0,0.052163]
[1733243118724,1.019922,95827.0,95824.0,0.052163]
[1733243119122,1.019922,95827.0,95810.0,1.60457529]
[1733243119123,0.997042,95827.0,95810.0,1.60457529]
[1733243119325,1.25756231,95827.0,95807.0,0.052172]
[1733243119524,0.3608,95812.0,95800.0,0.1]
[1733243119717,0.00016,95808.0,95807.0,0.052172]
[1733243120416,0.0736,95826.0,95807.0,0.052172]
[1733243120722,0.16844,95825.0,95824.0,0.052163]
[1733243121322,0.39092294,95826.0,95824.0,0.052163]
[1733243121622,0.16844,95825.0,95824.0,0.052163]
[1733243121922,0.052164,95823.0,95817.0,0.052167]
[1733243122118,0.3608,95818.0,95817.0,0.052167]
[1733243122626,0.052169,95814.0,95807.0,0.004]
[1733243122822,0.23994,95813.0,95811.0,0.05217]
[1733243123327,0.16848,95812.0,95811.0,0.05217]
[1733243124027,0.16848,95812.0,95811.0,0.05517]
[1733243124223,0.3608,95818.0,95817.0,0.052167]
[1733243124625,0.16848,95818.0,95817.0,0.413007]
[1733243124826,0.03032439,95819.0,95817.0,0.052207]
[1733243125032,0.3608,95825.0,95817.0,4e-05]
[1733243125327,0.3608,95825.0,95811.0,0.006]
[1733243125328,0.16848,95824.0,95818.0,0.052206]
[1733243125517,0.220643,95824.0,95818.0,0.052166]
[1733243125825,0.220643,95824.0,95819.0,0.052166]
[1733243126028,0.16848,95824.0,95817.0,0.052167]
[1733243126220,0.16848,95824.0,95822.0,0.052164]
[1733243126728,0.3608,95825.0,95822.0,0.052164]
[1733243126729,0.16848,95823.0,95822.0,0.052164]
[1733243127626,0.3608,95825.0,95824.0,0.052163]
[1733243127928,0.46989803,95827.0,95826.0,0.052162]
[1733243128129,0.16858762,95827.0,95826.0,0.052162]
[1733243128425,0.00010762,95827.0,95826.0,0.052202]
[1733243129925,0.4386,95844.0,95843.0,0.052153]
[1733243130127,0.16848,95845.0,95844.0,0.052152]
[1733243130632,0.16848,95845.0,95844.0,0.052192]
[1733243130838,0.16857969,95845.0,95844.0,0.052192]
[1733243131829,0.16813969,95845.0,95844.0,0.052192]
[1733243132427,0.19786046,95845.0,95844.0,0.052192]
[1733243132820,9.969e-05,95845.0,95844.0,0.052192]
[1733243133523,0.0745,95877.0,95844.0,0.052192]
[1733243133524,0.16804,95863.0,95861.0,0.052143]
[1733243133721,0.3608,95869.0,95868.0,0.052139]
[1733243133926,0.5595606,95869.0,95868.0,0.052139]
[1733243134126,0.5595606,95869.0,95868.0,0.052179]
[1733243134328,0.3608,95869.0,95868.0,0.052179]
[1733243134633,0.3608791,95869.0,95868.0,0.052179]
[1733243135828,0.3608,95896.0,95868.0,0.412979]
[1733243136023,0.16804,95887.0,95877.0,0.412935]
[1733243136220,0.16804,95895.0,95877.0,0.412975]
[1733243136421,0.16804,95895.0,95894.0,0.052126]
[1733243136828,0.16811561,95895.0,95894.0,0.052166]
[1733243137027,7.561e-05,95895.0,95894.0,0.052166]
[1733243137521,7.561e-05,95895.0,95894.0,0.061166]
[1733243138121,7.561e-05,95895.0,95894.0,0.053166]
[1733243138634,0.43852,95916.0,95908.0,0.052118]
[1733243138635,0.168,95909.0,95908.0,0.052118]
[1733243138833,0.168,95913.0,95905.0,0.05212]
[1733243139029,0.168,95913.0,95912.0,0.052116]
[1733243139336,0.168,95913.0,95912.0,0.412956]
[1733243139533,0.412904,95933.0,95932.0,0.052105]
[1733243139534,0.3608,95933.0,95932.0,0.052105]
[1733243139931,0.3608,95933.0,95932.0,0.052145]
[1733243140629,0.36091617,95933.0,95932.0,0.061145]
[1733243140932,0.36091617,95933.0,95932.0,0.070145]
[1733243144433,0.00011617,95933.0,95932.0,0.070145]
[1733243144634,0.02938168,95946.0,95945.0,0.052098]
[1733243144841,0.3608,95961.0,95945.0,0.3608]
[1733243145133,0.3608,95961.0,95959.0,0.05209]
[1733243145134,0.16792,95960.0,95959.0,0.05209]
[1733243145336,0.3608,95961.0,95959.0,0.05209]
[1733243145637,8.889e-05,95960.0,95959.0,0.05209]
[1733243146033,0.16800889,95960.0,95959.0,0.05209]
[1733243147240,8.889e-05,95960.0,95959.0,0.06109]
[1733243148536,8.889e-05,95960.0,95900.0,0.052122]
[1733243148537,0.27217952,95960.0,95932.0,0.00156342]
[1733243148730,0.052103,95936.0,95932.0,0.00156342]
[1733243149036,0.052103,95936.0,95913.0,0.3608]
[1733243149037,0.16788,95935.0,95913.0,0.3608]
[1733243149234,0.16788,95935.0,95916.0,0.02085526]
[1733243149235,0.3608,95930.0,95916.0,0.02085526]
[1733243149437,0.3608,95930.0,95928.0,0.052107]
[1733243149640,0.3608,95930.0,95916.0,0.02085526]
[1733243149835,0.3608,95930.0,95928.0,0.052107]
[1733243150037,0.3608,95930.0,95922.0,0.05211]
[1733243150243,0.3608,95930.0,95916.0,0.02085526]
[1733243150443,4e-05,95923.0,95922.0,0.052111]
[1733243150633,0.16792,95923.0,95922.0,0.052111]
[1733243152234,0.00504,95923.0,95922.0,0.052111]
[1733243152636,0.00504,95923.0,95922.0,0.412911]
[1733243152941,0.00504,95923.0,95922.0,0.413911]
[1733243152942,0.00904,95923.0,95922.0,0.413911]
[1733243153731,1e-08,95923.0,95922.0,0.413911]
[1733243154346,0.16788,95944.0,95922.0,1.914911]
[1733243154533,0.16788,95944.0,95943.0,0.052099]
[1733243154840,0.3608,95945.0,95944.0,0.052098]
[1733243155139,0.3608,95945.0,95944.0,0.052138]
[1733243155937,0.3638,95945.0,95944.0,0.052138]
[1733243156141,0.415898,95945.0,95944.0,4e-05]
[1733243156540,0.53168,95945.0,95944.0,4e-05]
[1733243156750,0.53168,95945.0,95944.0,0.052138]
[1733243157443,0.580778,95945.0,95944.0,4e-05]
[1733243159443,0.68500492,95945.0,95944.0,4e-05]
[1733243160037,0.68500492,95945.0,95944.0,0.00104]
[1733243160247,0.68500492,95945.0,95933.0,0.052104]
[1733243160443,0.412904,95934.0,95933.0,0.052104]
[1733243160636,0.52868,95934.0,95933.0,0.052104]
[1733243161045,0.52872,95934.0,95933.0,0.052104]
[1733243161851,0.53232,95934.0,95933.0,0.052104]
[1733243162345,0.36484,95934.0,95933.0,0.052104]
[1733243162545,0.36084,95934.0,95933.0,0.052104]
[1733243162937,0.00104,95934.0,95933.0,1.552104]
[1733243163347,0.16748,95946.0,95934.0,0.052104]
[1733243163540,0.16748,95946.0,95945.0,0.052098]
[1733243163736,0.16748,95946.0,95945.0,0.052138]
[1733243164446,0.3608,95955.0,95954.0,0.052093]
[1733243164955,0.3608,95955.0,95954.0,0.052133]
[1733243165750,0.52828,95955.0,95954.0,0.052133]
[1733243165950,0.52828,95955.0,95954.0,4e-05]
[1733243165951,0.580372,95955.0,95954.0,4e-05]
[1733243166144,0.584372,95955.0,95954.0,4e-05]
[1733243167643,0.584372,95955.0,95954.0,0.00104]
[1733243167644,0.416892,95955.0,95954.0,0.00104]
[1733243167846,0.584372,95955.0,95954.0,0.053133]
[1733243168555,0.584372,95955.0,95954.0,0.00104]
[1733243169040,0.3648,95955.0,95954.0,0.053133]
[1733243169244,0.53228,95955.0,95954.0,0.053133]
[1733243170251,0.53228,95955.0,95954.0,1.553133]
[1733243170752,0.53228,95955.0,95954.0,1.913933]
[1733243170753,0.004,95955.0,95954.0,1.913933]
[1733243170952,0.43812,95978.0,95977.0,0.05208]
[1733243171148,0.6351754,95978.0,95977.0,0.05208]
[1733243171451,0.6351754,95978.0,95977.0,0.05212]
[1733243171952,0.63526828,95978.0,95977.0,0.05212]
[1733243172149,0.63926828,95978.0,95977.0,0.05312]
[1733243172349,0.00409288,95978.0,95977.0,0.05312]
[1733243172855,0.00409288,95978.0,95977.0,0.05412]
[1733243175056,0.05617288,95978.0,95977.0,0.00204]
[1733243175449,0.00409288,95978.0,95977.0,0.05412]
[1733243177158,0.17153288,95978.0,95977.0,0.05412]
[1733243178247,0.14807527,95978.0,95977.0,0.05412]
[1733243178753,0.21952,95978.0,95977.0,0.00204]
[1733243179057,0.052091,95958.0,95957.0,0.02085178]
[1733243179264,0.58041129,95958.0,95957.0,0.02085178]
[1733243179558,0.52836029,95958.0,95957.0,0.07294278]
[1733243179949,0.33562029,95958.0,95957.0,0.07294278]
[1733243180356,0.33562029,95958.0,95957.0,1.57394278]
[1733243182149,0.33562029,95958.0,95957.0,0.02185178]
[1733243182150,0.38771129,95958.0,95957.0,0.02185178]
[1733243182753,0.41735387,95958.0,95957.0,0.02185178]
[1733243183256,0.41735387,95958.0,95957.0,0.07394378]
[1733243184262,0.36526287,95958.0,95957.0,0.07394378]
[1733243184457,0.50302029,95958.0,95957.0,0.07394378]
[1733243185055,0.33562029,95958.0,95957.0,0.07394378]
[1733243185251,0.50302029,95958.0,95957.0,0.07394378]
[1733243186955,0.55511129,95958.0,95957.0,0.001]
[1733243187156,0.55511129,95958.0,95957.0,0.053091]
[1733243187453,0.50302029,95958.0,95957.0,0.052091]
[1733243187658,0.00112029,95958.0,95957.0,0.053091]
[1733243188267,0.00112029,95958.0,95957.0,1.553091]
[1733243189059,0.00112029,95958.0,95957.0,1.552091]
[1733243189060,0.00012029,95958.0,95957.0,1.552091]
[1733243189356,0.00112029,95958.0,95957.0,1.553091]
[1733243192356,0.3608,95971.0,95970.0,0.052084]
[1733243193166,0.3608,95971.0,95970.0,0.052124]
[1733243193466,0.61052056,95980.0,95970.0,0.052124]
[1733243193467,0.00056001,95980.0,95979.0,0.05208]
[1733243193765,0.0679,95998.0,95980.0,0.052079]
[1733243193766,0.41620055,95993.0,95980.0,0.052079]
[1733243193965,0.16704,95993.0,95980.0,0.052079]
[1733243194171,0.16704,95993.0,95992.0,0.052072]
[1733243194471,0.1,96000.0,95999.0,0.052069]
[1733243194670,0.19216422,96000.0,95999.0,0.052069]
[1733243194871,0.35931686,96000.0,95999.0,0.052109]
[1733243195466,0.19227686,96000.0,95999.0,0.052109]
[1733243195668,0.35931686,96000.0,95999.0,0.052109]
[1733243195871,0.38975997,96000.0,95999.0,0.052109]
[1733243196060,0.22271997,96000.0,95999.0,0.053109]
[1733243196869,0.38975997,96000.0,95999.0,0.053109]
[1733243197268,0.29759575,96000.0,95999.0,0.053109]
[1733243197765,0.13055575,96000.0,95999.0,0.053109]
[1733243197963,0.10011264,96000.0,95999.0,0.053109]
[1733243198873,0.19242126,96000.0,95999.0,0.053109]
[1733243199266,0.10011264,96000.0,95999.0,0.053109]
[1733243201874,0.10011264,96000.0,95999.0,0.07395448]
[1733243205574,0.3608,96007.0,95999.0,0.07395448]
[1733243205575,0.3608,96007.0,96006.0,0.052065]
[1733243205778,0.167,96015.0,96014.0,0.05206]
[1733243205972,0.24872193,96024.0,96017.0,0.052059]
[1733243205973,0.052057,96021.0,96017.0,0.052059]
[1733243206170,0.5579521,96018.0,96017.0,0.052059]
[1733243206579,0.55805405,96018.0,96017.0,0.052099]
[1733243207081,0.55805405,96018.0,96017.0,4e-05]
[1733243207082,0.39105405,96018.0,96017.0,4e-05]
[1733243207280,0.55805405,96018.0,96017.0,0.052099]
[1733243208677,0.39105405,96018.0,96017.0,0.053099]
[1733243208976,0.55805405,96018.0,96017.0,0.053099]
[1733243211277,0.52790195,96018.0,96017.0,0.053099]
[1733243211581,0.36090195,96018.0,96017.0,0.053099]
[1733243211885,0.52786195,96018.0,96017.0,0.053099]
[1733243212074,0.16706195,96018.0,96017.0,0.053099]
[1733243212276,0.00010195,96018.0,96017.0,0.053099]
[1733243217984,0.00010195,96018.0,96017.0,0.054099]
[1733243218186,0.00010195,96018.0,96017.0,0.053099]
[1733243220997,0.00010195,96018.0,96017.0,0.052099]
[1733243221183,0.00010195,96018.0,96017.0,0.053099]
[1733243222491,0.00010195,96018.0,96017.0,0.052099]
[1733243224197,0.00010195,96018.0,96017.0,0.053099]
[1733243227200,0.00010195,96018.0,96017.0,0.052099]
[1733243227506,0.00010195,96018.0,96017.0,0.053099]
[1733243227991,0.00010195,96018.0,96017.0,0.052099]
[1733243228193,0.00010195,96018.0,96017.0,0.053099]
[1733243228791,0.00010195,96018.0,96017.0,0.052099]
[1733243228992,0.2792479,96029.0,96017.0,0.00104]
[1733243229192,0.2792479,96040.0,96039.0,0.052046]
[1733243229397,0.2792479,96040.0,96032.0,0.05205]
[1733243229398,0.16656,96042.0,96041.0,0.052045]
[1733243229599,0.16656,96042.0,96032.0,0.05205]
[1733243229600,0.3608,96047.0,96038.0,0.3608]
[1733243229805,0.3608,96047.0,96046.0,0.052042]
[1733243230003,0.3608,96047.0,96046.0,0.052082]
[1733243230004,0.5274569,96047.0,96046.0,0.052082]
[1733243230309,0.5274569,96047.0,96017.0,0.001]
[1733243230310,1.07572231,96047.0,96017.0,0.001]
[1733243230506,0.3608,96030.0,96029.0,0.052052]
[1733243230701,0.52736,96030.0,96029.0,0.052052]
[1733243231099,0.16656,96030.0,96029.0,0.052052]
[1733243231709,0.3608,96039.0,96029.0,0.052052]
[1733243231908,0.3608,96031.0,96029.0,0.10417471]
[1733243232106,0.3608,96031.0,96030.0,0.052051]
[1733243232808,0.16656,96032.0,96024.0,0.3608]
[1733243233005,0.16656,96032.0,96031.0,0.052051]
[1733243233700,0.19704031,96032.0,96031.0,0.052051]
[1733243234095,0.19704031,96032.0,95998.0,0.06530756]
[1733243234096,0.19704031,96032.0,96026.0,0.02083952]
[1733243234298,0.3608,96030.0,96027.0,0.052052]
[1733243234502,0.16656,96032.0,96026.0,0.02083952]
[1733243234806,0.16656,96032.0,96031.0,0.052091]
[1733243235307,0.02948864,96039.0,96038.0,0.052047]
[1733243235504,0.16656,96039.0,96038.0,0.052047]
[1733243235704,0.16656,96039.0,96038.0,0.052087]
[1733243236815,0.16656,96039.0,96038.0,0.053087]
[1733243237112,0.218606,96039.0,96038.0,0.053087]
[1733243237307,0.3057279,96039.0,96038.0,0.053087]
[1733243237607,0.218566,96039.0,96038.0,0.053087]
[1733243237806,0.13916766,96039.0,96038.0,0.053087]
[1733243238103,0.30568786,96039.0,96038.0,0.053087]
[1733243238305,0.218566,96039.0,96038.0,0.053087]
[1733243238509,0.218566,96039.0,96038.0,0.00104]
[1733243239012,0.218566,96039.0,96038.0,0.053087]
[1733243239906,0.218566,96039.0,96038.0,0.00104]
[1733243240409,0.31641731,96039.0,96038.0,0.00104]
[1733243240597,0.218566,96039.0,96038.0,0.00104]
[1733243240796,0.31641411,96039.0,96038.0,0.00104]
[1733243241008,0.052055,96024.0,96023.0,0.052055]
[1733243241199,0.052055,96024.0,96013.0,0.052059]
[1733243241200,0.052062,96014.0,96013.0,0.052059]
[1733243241803,0.3608,96015.0,96014.0,0.05206]
[1733243242005,0.52732,96015.0,96014.0,0.05206]
[1733243242202,0.52732,96015.0,96014.0,0.0521]
[1733243242409,0.44786708,96015.0,96014.0,0.0521]
[1733243243608,0.36140001,96024.0,96023.0,0.052055]
[1733243243804,0.36084,96024.0,96023.0,0.052055]
[1733243244004,0.36084,96024.0,96023.0,0.052095]
[1733243244903,0.36084,96024.0,96023.0,0.053095]
[1733243244904,0.36784,96024.0,96023.0,0.053095]
[1733243245512,0.46361958,96024.0,96023.0,0.052095]
[1733243245713,0.36484,96024.0,96023.0,0.052095]
[1733243246203,0.36384,96024.0,96023.0,0.052095]
[1733243246908,0.00304,96024.0,96023.0,0.052095]
[1733243247116,0.00204,96024.0,96023.0,0.052095]
[1733243247613,0.00204,96024.0,96023.0,1.552095]
[1733243248507,0.00304,96024.0,96023.0,1.552095]
[1733243249309,4e-05,96024.0,96023.0,1.552095]
[1733243249500,0.00104,96024.0,96023.0,0.052095]
[1733243249700,0.00104,96024.0,96023.0,0.412895]
[1733243249914,0.00104,96024.0,96023.0,0.052095]
[1733243250113,0.00104,96024.0,96023.0,0.412895]
[1733243250403,0.3608,96041.0,96040.0,0.052046]
[1733243250603,0.41284,96052.0,96045.0,0.052043]
[1733243250604,0.3608,96052.0,96045.0,0.052043]
[1733243250801,0.3608,96052.0,96046.0,1.552043]
[1733243250802,0.02970389,96048.0,96046.0,1.552043]
[1733243251007,0.09847169,96047.0,96046.0,0.052083]
[1733243251203,9.69e-05,96047.0,96046.0,0.052083]
[1733243251712,0.1666569,96047.0,96046.0,0.052083]
[1733243252316,0.36111853,96047.0,96046.0,0.053083]
[1733243252909,0.36214699,96047.0,96046.0,0.053083]
[1733243253307,0.26266276,96047.0,96046.0,0.053083]
[1733243254418,0.09646276,96047.0,96046.0,0.053083]
[1733243256010,0.0090969,96047.0,96046.0,0.053083]
[1733243259914,0.0611389,96047.0,96046.0,0.053083]
[1733243260618,0.0611389,96047.0,96046.0,0.00104]
[1733243260817,0.15969856,96047.0,96046.0,0.00104]
[1733243261119,0.0611389,96047.0,96046.0,0.053083]
[1733243261319,0.0611389,96047.0,96046.0,0.00104]
[1733243261718,0.15972275,96047.0,96046.0,0.00104]
[1733243262716,0.59736275,96047.0,96046.0,0.00104]
[1733243264720,0.54532075,96047.0,96038.0,0.052046]
[1733243264922,0.412846,96039.0,96038.0,0.052046]
[1733243265223,0.67762985,96039.0,96038.0,0.052046]
[1733243265426,0.67766986,96039.0,96038.0,0.052046]
[1733243266519,0.57908601,96039.0,96038.0,0.053046]
[1733243266718,0.60888458,96039.0,96038.0,0.053046]
[1733243266914,0.60888458,96039.0,96038.0,0.001]
[1733243267229,0.7067287,96039.0,96038.0,0.001]
[1733243267426,0.79412358,96039.0,96038.0,0.001]
[1733243267615,0.79412358,96039.0,96038.0,0.053047]
[1733243267931,0.79412358,96039.0,96038.0,0.052047]
[1733243268122,0.80312358,96039.0,96038.0,0.053047]
[1733243268516,0.80312358,96039.0,96038.0,0.001]
[1733243270028,0.052057,96022.0,96021.0,0.052056]
[1733243270222,0.218257,96022.0,96021.0,0.052056]
[1733243270422,0.30569189,96022.0,96021.0,0.052056]
[1733243271328,0.30569189,96022.0,96021.0,0.054056]
[1733243271329,0.40572569,96022.0,96021.0,0.054056]
[1733243272522,0.40572569,96022.0,96016.0,0.052059]
[1733243272523,0.05206,96017.0,96016.0,0.052059]
[1733243272722,0.14002421,96017.0,96016.0,0.052059]
[1733243273025,0.08800422,96017.0,96016.0,0.052059]
[1733243273623,0.08800422,96017.0,96016.0,0.415859]
[1733243274134,4.001e-05,96017.0,96016.0,1.915859]
[1733243274326,4.001e-05,96017.0,96016.0,1.917859]
[1733243274828,4.001e-05,96017.0,96016.0,1.557059]
[1733243275223,4.001e-05,96017.0,96016.0,0.057059]
[1733243275931,0.08814345,96017.0,96016.0,0.057059]
[1733243276234,0.08810719,96017.0,96016.0,0.057059]
[1733243278536,4.001e-05,96017.0,96016.0,0.057059]
[1733243278931,0.08787777,96017.0,96016.0,0.057059]
[1733243279127,4.001e-05,96017.0,96016.0,0.057059]
[1733243280528,4.001e-05,96017.0,96016.0,1.557059]
[1733243281932,4.001e-05,96017.0,96009.0,0.02084151]
[1733243282244,0.218258,96019.0,96009.0,0.02084151]
[1733243282427,0.218258,96019.0,96018.0,0.052058]
[1733243282628,0.30712839,96019.0,96018.0,0.052058]
[1733243282822,0.30712839,96019.0,96018.0,0.052098]
[1733243283325,0.25507039,96019.0,96018.0,0.052098]
[1733243284236,0.25607039,96019.0,96018.0,0.052098]
[1733243284735,0.30712839,96019.0,96018.0,0.00204]
[1733243284937,0.30712839,96019.0,96018.0,0.00304]
[1733243285434,0.30712839,96019.0,95990.0,0.10677471]
[1733243285435,0.052066,96009.0,95995.0,0.02084151]